fUST/lending_fUST_20250311
["ID","MTS","AMOUNT","RATE_DAILY","PERIOD"]
[355898509,1741695053652,-1267.56,0.00033698,7]
[355898510,1741695053662,-1271.42,0.00033698,7]
[355898511,1741695053671,-736.19,0.00033698,7]
[355898512,1741695053681,-500.0,0.00033698,7]
[355898513,1741695053690,-7024.08,0.00033698,7]
[355898514,1741695053700,-993.56,0.00033698,7]
[355898515,1741695053710,-732.5,0.00033698,7]
[355898516,1741695053720,-541.7,0.00033698,7]
[355898517,1741695053730,-980.96,0.00033698,7]
[355898518,1741695053739,-500.0,0.00033698,7]
[355898519,1741695053749,-1275.08,0.00033698,7]
[355898520,1741695053758,-986.09,0.00033698,7]
[355898521,1741695053768,-770.93,0.00033698,7]
[355898522,1741695053777,-988.89,0.00033698,7]
[355898523,1741695053787,-1935.18,0.00033698,7]
[355898524,1741695053797,-500.0,0.00033698,7]
[355898525,1741695053807,-1374.06,0.00033698,7]
[355898526,1741695053817,-500.0,0.00033698,7]
[355898527,1741695053827,-500.0,0.00033698,7]
[355898528,1741695053836,-500.0,0.00033698,7]
[355898529,1741695053846,-745.04,0.00033698,7]
[355898530,1741695053856,-5601.81,0.00033698,7]
[355898531,1741695053866,-1155.41,0.00033698,7]
[355898532,1741695053875,-829.17,0.00033698,7]
[355898533,1741695053884,-500.0,0.00033698,7]
[355898534,1741695053894,-962.34,0.00033698,7]
[355898535,1741695053903,-733.52,0.00033698,7]
[355898536,1741695053913,-639.39,0.00033698,7]
[355898537,1741695053923,-500.0,0.00033698,7]
[355898538,1741695053933,-1089.45,0.00033698,7]
[355898539,1741695053943,-5880.08,0.00033698,7]
[355898540,1741695053952,-3049.91,0.00033698,7]
[355898541,1741695053962,-811.41,0.00033698,7]
[355898542,1741695053972,-784.07,0.00033698,7]
[355898543,1741695053982,-500.0,0.00033698,7]
[355898544,1741695053991,-500.0,0.00033698,7]
[355898545,1741695054001,-500.0,0.00033698,7]
[355898546,1741695054011,-500.0,0.00033698,7]
[355898547,1741695054021,-2787.16,0.00033698,7]
[355898548,1741695054032,-500.0,0.00033698,7]
[355898549,1741695054042,-555.22,0.00033698,7]
[355898550,1741695054051,-500.0,0.00033698,7]
[355898551,1741695054061,-1232.85,0.00033698,7]
[355898552,1741695054070,-12621.59,0.00033698,2]
[355898553,1741695054080,-500.0,0.00033698,7]
[355898554,1741695054090,-750.56,0.00033698,7]
[355898555,1741695054101,-564.59958604,0.00033698,7]
[355898556,1741695054111,-500.0,0.00033698,7]
[355898557,1741695054120,-151.0,0.00033698,14]
[355898558,1741695054129,-500.0,0.00033698,7]
[355898559,1741695054139,-2932.36,0.00033698,7]
[355898560,1741695054149,-500.0,0.00033698,7]
[355898561,1741695054158,-500.0,0.00033698,7]
[355898562,1741695054168,-500.0,0.00033698,7]
[355898563,1741695054178,-500.0,0.00033698,7]
[355898564,1741695054188,-787.55,0.00033698,7]
[355898565,1741695054201,-500.13,0.00033698,2]
[355898566,1741695054210,-1927.93,0.00033698,7]
[355898567,1741695054220,-880.5,0.00033698,7]
[355898568,1741695054231,-954.03,0.00033698,7]
[355898569,1741695054242,-2054.61,0.00033698,7]
[355898570,1741695054252,-500.0,0.00033698,7]
[355898571,1741695054262,-573.36763138,0.00033698,2]
[355898572,1741695054272,-929.86,0.00033698,7]
[355898573,1741695054282,-500.0,0.00033698,7]
[355898574,1741695054292,-907.67,0.00033698,7]
[355898575,1741695054301,-151.0,0.00033783,2]
[355898576,1741695054311,-600.0,0.00033783,2]
[355898577,1741695054320,-622.2,0.00033838,2]
[355898578,1741695054329,-680.0,0.00033865,2]
[355898579,1741695054339,-680.0,0.00033865,2]
[355898580,1741695054348,-680.0,0.00033865,2]
[355898581,1741695054357,-680.0,0.00033875,2]
[355898582,1741695054367,-680.0,0.00033875,2]
[355898583,1741695054376,-780.0,0.00033875,2]
[355898584,1741695054385,-645.2214,0.00033893,2]
[355898585,1741695054395,-160.0,0.00033897,3]
[355898586,1741695054405,-669.0945918,0.00033948,2]
[355898587,1741695054414,-780.0,0.00033966,2]
[355898588,1741695054424,-662.06,0.00033968,2]
[355898589,1741695054434,-382.79,0.0003397,2]
[355898590,1741695054443,-500.0,0.00033972,7]
[355898591,1741695054453,-500.0,0.00033972,5]
[355898592,1741695054463,-500.0,0.00033972,7]
[355898593,1741695054473,-625.55,0.00033972,7]
[355898594,1741695054482,-500.0,0.00033972,7]
[355898595,1741695054492,-500.0,0.00033972,7]
[355898596,1741695054501,-500.0,0.00033972,7]
[355898597,1741695054511,-673.91,0.00033972,7]
[355898598,1741695054520,-500.0,0.00033972,7]
[355898599,1741695054530,-500.0,0.00033972,7]
[355898600,1741695054540,-500.0,0.00033972,7]
[355898601,1741695054549,-500.0,0.00033972,7]
[355898602,1741695054559,-500.0,0.00033972,7]
[355898603,1741695054569,-305.19420202,0.00033972,7]
[355898604,1741695054578,-500.0,0.00033972,7]
[355898605,1741695054588,-500.0,0.00033972,7]
[355898606,1741695054597,-500.0,0.00033972,7]
[355898607,1741695054607,-500.0,0.00033972,7]
[355898608,1741695054617,-547.92037625,0.00033972,7]
[355898609,1741695054626,-500.0,0.00033972,7]
[355898610,1741695054636,-702.78,0.00033972,7]
[355898611,1741695054646,-500.0,0.00033972,7]
[355898612,1741695054655,-500.0,0.00033972,7]
[355898613,1741695054665,-500.0,0.00033972,7]
[355898614,1741695054675,-557.89,0.00033972,7]
[355898615,1741695054684,-521.71,0.00033972,7]
[355898616,1741695054693,-500.0,0.00033972,7]
[355898617,1741695054703,-500.0,0.00033972,7]
[355898618,1741695054713,-908.05,0.00033972,7]
[355898619,1741695054722,-514.33339793,0.00033972,7]
[355898620,1741695054732,-500.0,0.00033972,7]
[355898621,1741695054741,-865.89,0.00033972,7]
[355898622,1741695054750,-580.7170299,0.00033972,7]
[355898623,1741695054760,-500.0,0.00033972,7]
[355898624,1741695054769,-500.0,0.00033972,7]
[355898625,1741695054779,-197.81152558,0.00033972,7]
[355898626,1741695054788,-500.0,0.00033972,7]
[355898627,1741695054798,-754.14,0.00033972,7]
[355898628,1741695054808,-1673.35,0.00033972,7]
[355898629,1741695054817,-573.35895013,0.00033972,7]
[355898630,1741695054827,-500.0,0.00033972,7]
[355898631,1741695054837,-677.07,0.00033972,7]
[355898632,1741695054847,-500.0,0.00033972,7]
[355898633,1741695054856,-500.0,0.00033972,7]
[355898634,1741695054866,-561.62103165,0.00033972,7]
[355898635,1741695054876,-500.0,0.00033972,7]
[355898636,1741695054886,-1023.55,0.00033972,7]
[355898637,1741695054896,-500.0,0.00033972,7]
[355898638,1741695054906,-500.0,0.00033972,7]
[355898639,1741695055067,-1082.92,0.00033972,7]
[355898640,1741695055080,-573.41616789,0.00033972,7]
[355898641,1741695055091,-873.54,0.00033972,7]
[355898642,1741695055102,-500.0,0.00033972,7]
[355898643,1741695055113,-519.6,0.00033972,7]
[355898644,1741695055123,-500.0,0.00033972,7]
[355898645,1741695055134,-500.0,0.00033972,7]
[355898646,1741695055145,-504.43413911,0.00033972,7]
[355898647,1741695055156,-500.0,0.00033972,2]
[355898648,1741695055168,-336.412385,0.00033972,14]
[355898649,1741695055179,-500.0,0.00033972,7]
[355898650,1741695055195,-336.412385,0.00033972,14]
[355898651,1741695055206,-500.0,0.00033972,2]
[355898652,1741695055220,-336.412385,0.00033972,14]
[355898653,1741695055232,-1095.93,0.00033972,7]
[355898654,1741695055244,-278.24024527,0.00033972,7]
[355898655,1741695055254,-336.412385,0.00033972,14]
[355898656,1741695055264,-695.17,0.00033972,7]
[355898657,1741695055275,-614.38,0.00033972,7]
[355898658,1741695055287,-500.0,0.00033972,7]
[355898659,1741695055297,-500.0,0.00033972,7]
[355898660,1741695055307,-479.66954955,0.00033972,7]
[355898661,1741695055317,-500.0,0.00033972,2]
[355898662,1741695055326,-551.27,0.00033972,7]
[355898663,1741695055336,-1330.09,0.00033972,7]
[355898664,1741695055345,-500.0,0.00033972,7]
[355898665,1741695055354,-931.03,0.00033972,7]
[355898666,1741695055364,-500.0,0.00033972,7]
[355898667,1741695055374,-500.0,0.00033972,7]
[355898668,1741695055383,-591.82,0.00033972,7]
[355898669,1741695055394,-500.0,0.00033972,7]
[355898670,1741695055404,-500.0,0.00033972,7]
[355898671,1741695055414,-500.0,0.00033972,7]
[355898672,1741695055425,-933.31,0.00033972,7]
[355898673,1741695055435,-795.07,0.00033972,7]
[355898674,1741695055445,-500.0,0.00033972,7]
[355898675,1741695055455,-500.0,0.00033972,7]
[355898676,1741695055465,-617.03,0.00033972,7]
[355898677,1741695055475,-1018.72,0.00033972,7]
[355898678,1741695055485,-407.57600364,0.00033972,7]
[355898679,1741695055494,-500.0,0.00033972,7]
[355898680,1741695055504,-908.92,0.00033972,7]
[355898681,1741695055514,-1737.97,0.00033972,7]
[355898682,1741695055524,-500.0,0.00033972,7]
[355898683,1741695055535,-826.41,0.00033972,7]
[355898684,1741695055545,-804.08,0.00033972,7]
[355898685,1741695055556,-1673.2,0.00033972,7]
[355898686,1741695055566,-500.0,0.00033972,7]
[355898687,1741695055576,-779.12,0.00033972,7]
[355898688,1741695055586,-796.75,0.00033972,7]
[355898689,1741695055596,-500.0,0.00033972,7]
[355898690,1741695055606,-1274.5,0.00033972,7]
[355898691,1741695055616,-500.0,0.00033972,7]
[355898692,1741695055627,-500.0,0.00033972,7]
[355898693,1741695055638,-500.0,0.00033972,7]
[355898694,1741695055649,-500.0,0.00033972,7]
[355898695,1741695055659,-851.15,0.00033972,7]
[355898696,1741695055671,-500.0,0.00033972,7]
[355898697,1741695055681,-500.0,0.00033972,7]
[355898698,1741695055693,-500.0,0.00033972,7]
[355898699,1741695055704,-1003.93,0.00033972,7]
[355898700,1741695055715,-765.82,0.00033972,7]
[355898701,1741695055727,-637.49,0.00033972,7]
[355898702,1741695055739,-151.0,0.00033972,14]
[355898703,1741695055750,-151.0,0.00033972,14]
[355898704,1741695055762,-2150.15,0.00033972,7]
[355898705,1741695055772,-500.0,0.00033972,7]
[355898706,1741695055788,-2766.58,0.00033972,7]
[355898707,1741695055799,-500.0,0.00033972,7]
[355898708,1741695055810,-500.0,0.00033972,7]
[355898709,1741695055821,-261.68958595,0.00033972,7]
[355898710,1741695055831,-750.37,0.00033972,7]
[355898711,1741695055842,-500.0,0.00033972,7]
[355898712,1741695055853,-920.19,0.00033972,7]
[355898713,1741695055864,-500.0,0.00033972,7]
[355898714,1741695055875,-724.74,0.00033972,7]
[355898715,1741695055886,-500.0,0.00033972,7]
[355898716,1741695055897,-603.45101976,0.00033972,7]
[355898717,1741695055908,-500.0,0.00033972,7]
[355898718,1741695055919,-663.78,0.00033972,7]
[355898719,1741695055930,-500.0,0.00033972,7]
[355898720,1741695055942,-500.0,0.00033972,7]
[355898721,1741695055953,-500.0,0.00033972,7]
[355898722,1741695055964,-500.0,0.00033972,7]
[355898723,1741695055975,-500.0,0.00033972,7]
[355898724,1741695055985,-795.7,0.00033972,7]
[355898725,1741695055996,-1184.43,0.00033972,7]
[355898726,1741695056007,-500.0,0.00033972,7]
[355898727,1741695056017,-821.86,0.00033972,7]
[355898728,1741695056027,-500.0,0.00033972,7]
[355898729,1741695056042,-500.0,0.00033972,7]
[355898730,1741695056053,-500.0,0.00033972,7]
[355898731,1741695056063,-565.85,0.00033972,7]
[355898732,1741695056074,-500.0,0.00033972,7]
[355898733,1741695056084,-500.0,0.00033972,7]
[355898734,1741695056094,-840.8,0.00033972,7]
[355898735,1741695056104,-560.11608931,0.00033972,7]
[355898736,1741695056114,-500.0,0.00033972,7]
[355898737,1741695056124,-3149.47,0.00033972,7]
[355898738,1741695056134,-500.0,0.00033972,7]
[355898739,1741695056144,-1452.45,0.00033972,7]
[355898740,1741695056154,-500.0,0.00033972,7]
[355898741,1741695056164,-500.0,0.00033972,7]
[355898742,1741695056175,-626.6,0.00033972,7]
[355898743,1741695056186,-3187.87,0.00033972,7]
[355898744,1741695056197,-500.0,0.00033972,7]
[355898745,1741695056210,-540.88,0.00033972,7]
[355898746,1741695056220,-273.62030131,0.00033972,7]
[355898747,1741695056231,-500.0,0.00033972,7]
[355898748,1741695056241,-767.86,0.00033972,7]
[355898749,1741695056251,-942.67,0.00033972,7]
[355898750,1741695056261,-636.21,0.00033972,7]
[355898751,1741695056270,-500.0,0.00033972,7]
[355898752,1741695056282,-151.0,0.00033972,14]
[355898753,1741695056292,-151.0,0.00033972,14]
[355898754,1741695056301,-500.0,0.00033972,7]
[355898755,1741695056311,-1064.79,0.00033972,7]
[355898756,1741695056321,-677.39,0.00033972,7]
[355898757,1741695056330,-545.14604394,0.00033972,7]
[355898758,1741695056339,-500.0,0.00033972,7]
[355898759,1741695056349,-1153.94,0.00033972,7]
[355898760,1741695056358,-151.0,0.00033972,14]
[355898761,1741695056368,-500.0,0.00033972,7]
[355898762,1741695056378,-486.86490723,0.00033972,7]
[355898763,1741695056387,-151.0,0.00033972,14]
[355898764,1741695056397,-18956.44,0.00033972,7]
[355898765,1741695056407,-500.0,0.00033972,7]
[355898766,1741695056417,-500.0,0.00033972,7]
[355898767,1741695056427,-500.0,0.00033972,7]
[355898768,1741695056436,-649.68,0.00033972,7]
[355898769,1741695056446,-706.44,0.00033972,3]
[355898770,1741695056456,-686.45,0.00033972,7]
[355898771,1741695056466,-803.3,0.00033972,7]
[355898772,1741695056476,-500.0,0.00033972,7]
[355898773,1741695056485,-756.98,0.00033972,7]
[355898774,1741695056495,-500.0,0.00033972,7]
[355898775,1741695056504,-882.99,0.00033972,7]
[355898776,1741695056514,-564.47,0.00033972,7]
[355898777,1741695056523,-5057.55,0.00033972,7]
[355898778,1741695056535,-1673.37,0.00033972,7]
[355898779,1741695056544,-815.09,0.00033972,7]
[355898780,1741695056553,-500.0,0.00033972,7]
[355898781,1741695056562,-1408.71,0.00033972,7]
[355898782,1741695056572,-664.03,0.00033972,7]
[355898783,1741695056581,-1305.95,0.00033972,7]
[355898784,1741695056591,-500.0,0.00033972,7]
[355898785,1741695056601,-6781.22,0.00033972,7]
[355898786,1741695056610,-926.55,0.00033972,7]
[355898787,1741695056620,-1332.7,0.00033972,7]
[355898788,1741695056630,-1286.83,0.00033972,7]
[355898789,1741695056639,-500.0,0.00033972,7]
[355898790,1741695056650,-500.0,0.00033972,7]
[355898791,1741695056660,-736.82,0.00033972,7]
[355898792,1741695056670,-500.0,0.00033972,7]
[355898793,1741695056680,-1393.62,0.00033972,7]
[355898794,1741695056689,-977.22,0.00033972,7]
[355898795,1741695056699,-1381.89,0.00033972,7]
[355898796,1741695056709,-1041.53,0.00033972,7]
[355898797,1741695056718,-169173.3,0.00033972,7]
[355898798,1741695056727,-1239.43,0.00033972,7]
[355898799,1741695056737,-500.0,0.00033972,7]
[355898800,1741695056747,-500.0,0.00033972,7]
[355898801,1741695056756,-500.0,0.00033972,7]
[355898802,1741695056766,-593.88374561,0.00033972,7]
[355898803,1741695056776,-500.0,0.00033972,7]
[355898804,1741695056787,-1257.39,0.00033972,7]
[355898805,1741695056797,-500.0,0.00033972,7]
[355898806,1741695056806,-643.36618949,0.00033972,7]
[355898807,1741695056815,-3412.74,0.00033972,7]
[355898808,1741695056825,-500.0,0.00033972,7]
[355898809,1741695056835,-764.76,0.00033972,7]
[355898810,1741695056844,-1042.92,0.00033972,7]
[355898811,1741695056854,-516.26,0.00033972,7]
[355898812,1741695056863,-1047.73,0.00033972,7]
[355898813,1741695056874,-500.0,0.00033972,7]
[355898814,1741695056883,-1059.9,0.00033972,7]
[355898815,1741695056893,-622.95,0.00033972,7]
[355898816,1741695056903,-500.0,0.00033972,7]
[355898817,1741695056914,-3013.85,0.00033972,7]
[355898818,1741695056923,-500.0,0.00033972,7]
[355898819,1741695056933,-500.0,0.00033972,7]
[355898820,1741695056943,-500.0,0.00033972,7]
[355898821,1741695056952,-667.39,0.00033972,7]
[355898822,1741695056962,-509.65,0.00033972,7]
[355898823,1741695056972,-670.74,0.00033972,7]
[355898824,1741695057097,-1582.72,0.00033972,7]
[355898825,1741695057110,-5626.47,0.00033972,7]
[355898826,1741695057120,-500.0,0.00033972,7]
[355898827,1741695057130,-500.0,0.00033972,7]
[355898828,1741695057139,-500.0,0.00033972,7]
[355898829,1741695057148,-603.07,0.00033972,7]
[355898830,1741695057157,-564.17,0.00033972,7]
[355898831,1741695057167,-843.1,0.00033972,7]
[355898832,1741695057176,-581.91,0.00033972,7]
[355898833,1741695057186,-500.0,0.00033972,7]
[355898834,1741695057200,-3153.02,0.00033972,7]
[355898835,1741695057209,-500.0,0.00033972,7]
[355898836,1741695057219,-6141.32,0.00033972,7]
[355898837,1741695057229,-500.0,0.00033972,7]
[355898838,1741695057241,-500.0,0.00033972,7]
[355898839,1741695057251,-500.0,0.00033972,7]
[355898840,1741695057260,-4009.94,0.00033972,7]
[355898841,1741695057271,-500.0,0.00033972,7]
[355898842,1741695057282,-3615.33,0.00033972,7]
[355898843,1741695057291,-769.89,0.00033972,7]
[355898844,1741695057301,-1319.72,0.00033972,7]
[355898845,1741695057310,-500.0,0.00033972,7]
[355898846,1741695057320,-1549.54,0.00033972,7]
[355898847,1741695057329,-1201.25,0.00033972,7]
[355898848,1741695057338,-500.0,0.00033972,7]
[355898849,1741695057348,-540.93,0.00033972,7]
[355898850,1741695057358,-1267.56,0.00033972,7]
[355898851,1741695057367,-1271.42,0.00033972,7]
[355898852,1741695057376,-736.19,0.00033972,7]
[355898853,1741695057386,-500.0,0.00033972,7]
[355898854,1741695057395,-7024.08,0.00033972,7]
[355898855,1741695057404,-993.56,0.00033972,7]
[355898856,1741695057414,-732.5,0.00033972,7]
[355898857,1741695057423,-541.7,0.00033972,7]
[355898858,1741695057432,-980.96,0.00033972,7]
[355898859,1741695057442,-500.0,0.00033972,7]
[355898860,1741695057451,-1275.08,0.00033972,7]
[355898861,1741695057460,-986.09,0.00033972,7]
[355898862,1741695057469,-770.93,0.00033972,7]
[355898863,1741695057479,-988.89,0.00033972,7]
[355898864,1741695057488,-1935.18,0.00033972,7]
[355898865,1741695057497,-500.0,0.00033972,7]
[355898866,1741695057507,-1374.06,0.00033972,7]
[355898867,1741695057517,-500.0,0.00033972,7]
[355898868,1741695057534,-500.0,0.00033972,7]
[355898869,1741695057544,-500.0,0.00033972,7]
[355898870,1741695057553,-745.04,0.00033972,7]
[355898871,1741695057563,-5601.81,0.00033972,7]
[355898872,1741695057573,-1155.41,0.00033972,7]
[355898873,1741695057582,-829.17,0.00033972,7]
[355898874,1741695057592,-500.0,0.00033972,7]
[355898875,1741695057601,-733.52,0.00033972,7]
[355898876,1741695057610,-962.34,0.00033972,7]
[355898877,1741695057621,-639.39,0.00033972,7]
[355898878,1741695057635,-500.0,0.00033972,7]
[355898879,1741695057651,-1089.45,0.00033972,7]
[355898880,1741695057660,-5880.08,0.00033972,7]
[355898881,1741695057670,-3049.91,0.00033972,7]
[355898882,1741695057680,-811.41,0.00033972,7]
[355898883,1741695057689,-784.07,0.00033972,7]
[355898884,1741695057699,-500.0,0.00033972,7]
[355898885,1741695057709,-500.0,0.00033972,7]
[355898886,1741695057718,-500.0,0.00033972,7]
[355898887,1741695057728,-2787.16,0.00033972,7]
[355898888,1741695057737,-500.0,0.00033972,7]
[355898889,1741695057747,-555.22,0.00033972,7]
[355898890,1741695057756,-500.0,0.00033972,7]
[355898891,1741695057765,-1232.85,0.00033972,7]
[355898892,1741695057775,-12621.59,0.00033972,2]
[355898893,1741695057787,-500.0,0.00033972,7]
[355898894,1741695057796,-750.56,0.00033972,7]
[355898895,1741695057806,-500.0,0.00033972,7]
[355898896,1741695057816,-151.0,0.00033972,14]
[355898897,1741695057825,-500.0,0.00033972,7]
[355898898,1741695057835,-2932.36,0.00033972,7]
[355898899,1741695057845,-500.0,0.00033972,7]
[355898900,1741695057854,-492.40255892,0.00033972,7]
[355898901,1741695057864,-500.0,0.00033972,7]
[355898902,1741695057873,-500.0,0.00033972,7]
[355898903,1741695057883,-787.55,0.00033972,7]
[355898904,1741695057892,-500.13,0.00033972,2]
[355898905,1741695057901,-1927.93,0.00033972,7]
[355898906,1741695057910,-880.5,0.00033972,7]
[355898907,1741695057920,-954.03,0.00033972,7]
[355898908,1741695057929,-2054.61,0.00033972,7]
[355898909,1741695057939,-500.0,0.00033972,7]
[355898910,1741695057948,-929.86,0.00033972,7]
[355898911,1741695057958,-500.0,0.00033972,7]
[355898912,1741695057968,-907.67,0.00033972,7]
[355898913,1741695057977,-500.0,0.00033973,5]
[355898914,1741695057987,-500.0,0.00033973,5]
[355898915,1741695057996,-502.04867327,0.00033973,5]
[355898916,1741695058005,-9748.73,0.00034,30]
[355898917,1741695058015,-2664.23,0.00034,30]
[355898918,1741695058024,-266.88,0.00034,30]
[355898919,1741695058034,-817.53,0.00034,30]
[355898920,1741695058043,-240.1,0.00034,30]
[355898921,1741695058052,-693.8510917,0.00034003,2]
[355898922,1741695058061,-719.52358209,0.00034058,2]
[355898923,1741695058071,-746.14595463,0.00034113,2]
[355898924,1741695058080,-806.7,0.00034116,3]
[355898925,1741695058089,-560.0,0.00034154,2]
[355898926,1741695058099,-773.75335495,0.00034168,2]
[355898927,1741695058108,-250.0,0.00034221,5]
[355898928,1741695058117,-250.0,0.00034221,5]
[355898929,1741695058127,-802.38222908,0.00034223,2]
[355898930,1741695058136,-209.23,0.00034235,2]
[355898931,1741695058146,-3226.8,0.00034236,3]
[355898932,1741695058155,-1613.4,0.00034236,3]
[355898933,1741695058164,-806.7,0.00034236,3]
[355898934,1741695058173,-1706.47702723,0.00034241,2]
[355898935,1741695058182,-151.0,0.00034245,14]
[355898936,1741695058192,-178.43852,0.00034245,14]
[355898937,1741695058202,-185.893264,0.00034245,14]
[355898938,1741695058214,-500.0,0.00034246,7]
[355898939,1741695058224,-500.0,0.00034246,5]
[355898940,1741695058234,-500.0,0.00034246,7]
[355898941,1741695058243,-625.55,0.00034246,7]
[355898942,1741695058252,-292.10565352,0.00034246,7]
[355898943,1741695058261,-500.0,0.00034246,7]
[355898944,1741695058271,-500.0,0.00034246,7]
[355898945,1741695058282,-673.91,0.00034246,7]
[355898946,1741695058292,-500.0,0.00034246,7]
[355898947,1741695058302,-500.0,0.00034246,7]
[355898948,1741695058311,-500.0,0.00034246,7]
[355898949,1741695058321,-500.0,0.00034246,7]
[355898950,1741695058330,-500.0,0.00034246,7]
[355898951,1741695058339,-177.71933593,0.00034246,7]
[355898952,1741695058348,-500.0,0.00034246,7]
[355898953,1741695058358,-500.0,0.00034246,7]
[355898954,1741695058367,-500.0,0.00034246,7]
[355898955,1741695058377,-500.0,0.00034246,7]
[355898956,1741695058386,-702.78,0.00034246,7]
[355898957,1741695058395,-500.0,0.00034246,7]
[355898958,1741695058404,-541.09244764,0.00034246,7]
[355898959,1741695058413,-500.0,0.00034246,7]
[355898960,1741695058422,-557.89,0.00034246,7]
[355898961,1741695058431,-521.71,0.00034246,7]
[355898962,1741695058441,-500.0,0.00034246,7]
[355898963,1741695058449,-500.0,0.00034246,7]
[355898964,1741695058459,-908.05,0.00034246,7]
[355898965,1741695058468,-500.0,0.00034246,7]
[355898966,1741695058478,-865.89,0.00034246,7]
[355898967,1741695058488,-500.0,0.00034246,7]
[355898968,1741695058498,-500.0,0.00034246,7]
[355898969,1741695058507,-500.0,0.00034246,7]
[355898970,1741695058518,-754.14,0.00034246,7]
[355898971,1741695058528,-1673.35,0.00034246,7]
[355898972,1741695058538,-500.0,0.00034246,7]
[355898973,1741695058548,-677.07,0.00034246,7]
[355898974,1741695058557,-500.0,0.00034246,7]
[355898975,1741695058567,-563.09729595,0.00034246,7]
[355898976,1741695058576,-1023.55,0.00034246,7]
[355898977,1741695058585,-500.0,0.00034246,7]
[355898978,1741695058594,-500.0,0.00034246,7]
[355898979,1741695058603,-1082.92,0.00034246,7]
[355898980,1741695058612,-873.54,0.00034246,7]
[355898981,1741695058622,-500.0,0.00034246,7]
[355898982,1741695058632,-519.6,0.00034246,7]
[355898983,1741695058642,-500.0,0.00034246,7]
[355898984,1741695058652,-500.0,0.00034246,7]
[355898985,1741695058662,-500.0,0.00034246,2]
[355898986,1741695058672,-500.0,0.00034246,7]
[355898987,1741695058682,-336.412385,0.00034246,14]
[355898988,1741695058693,-336.412385,0.00034246,14]
[355898989,1741695058703,-500.0,0.00034246,2]
[355898990,1741695058713,-1095.93,0.00034246,7]
[355898991,1741695058722,-336.412385,0.00034246,14]
[355898992,1741695058734,-336.412385,0.00034246,14]
[355898993,1741695058751,-695.17,0.00034246,7]
[355898994,1741695058771,-614.38,0.00034246,7]
[355898995,1741695058904,-500.0,0.00034246,7]
[355898996,1741695058914,-500.0,0.00034246,2]
[355898997,1741695058924,-551.27,0.00034246,7]
[355898998,1741695058934,-1330.09,0.00034246,7]
[355898999,1741695058944,-515.39532444,0.00034246,7]
[355899000,1741695058953,-500.0,0.00034246,7]
[355899001,1741695058963,-931.03,0.00034246,7]
[355899002,1741695058973,-500.0,0.00034246,7]
[355899003,1741695058983,-500.0,0.00034246,7]
[355899004,1741695058992,-591.82,0.00034246,7]
[355899005,1741695059002,-500.0,0.00034246,7]
[355899006,1741695059012,-500.0,0.00034246,7]
[355899007,1741695059021,-500.0,0.00034246,7]
[355899008,1741695059031,-933.31,0.00034246,7]